fUSD/lending_fUSD_20250308
["ID","MTS","AMOUNT","RATE_DAILY","PERIOD"]
[355644807,1741425641476,-500.0,8.219e-05,2]
[355644808,1741425641499,-500.0,8.219e-05,2]
[355644809,1741425641525,-744.06,8.219e-05,2]
[355644810,1741425641556,-500.0,8.219e-05,2]
[355644811,1741425641580,-500.0,8.219e-05,2]
[355644812,1741425641604,-500.0,8.219e-05,2]
[355644813,1741425641628,-500.0,8.219e-05,2]
[355644814,1741425641652,-1113.66,8.219e-05,2]
[355644815,1741425641677,-500.0,8.219e-05,2]
[355644816,1741425641701,-1546.22,8.219e-05,2]
[355644817,1741425641725,-627.29756119,8.219e-05,2]
[355644818,1741425641749,-500.0,8.219e-05,2]
[355644819,1741425641774,-1274.0,8.219e-05,2]
[355644820,1741425641801,-500.0,8.219e-05,2]
[355644821,1741425641828,-500.0,8.219e-05,2]
[355644822,1741425641852,-500.0,8.219e-05,2]
[355644823,1741425641879,-544.47,8.219e-05,2]
[355644824,1741425641903,-500.0,8.219e-05,2]
[355644825,1741425641926,-621.81,8.219e-05,2]
[355644826,1741425641950,-618.32,8.219e-05,2]
[355644827,1741425641974,-500.0,8.219e-05,2]
[355644828,1741425641997,-500.0,8.219e-05,2]
[355644829,1741425642021,-1306.91,8.219e-05,2]
[355644830,1741425642046,-733.22,8.219e-05,2]
[355644831,1741425642075,-1738.68,8.219e-05,2]
[355644832,1741425642100,-500.0,8.219e-05,2]
[355644833,1741425642127,-542.93,8.219e-05,2]
[355644834,1741425642152,-500.0,8.219e-05,2]
[355644835,1741425642179,-1314.56,8.219e-05,2]
[355644836,1741425642206,-1313.26,8.219e-05,2]
[355644837,1741425642231,-644.76,8.219e-05,2]
[355644838,1741425642258,-3112.87,8.219e-05,2]
[355644839,1741425642282,-1387.85,8.219e-05,2]
[355644840,1741425642306,-500.0,8.219e-05,2]
[355644841,1741425642332,-500.0,8.219e-05,2]
[355644842,1741425642356,-500.0,8.219e-05,2]
[355644843,1741425642384,-1931.3,8.219e-05,2]
[355644844,1741425642409,-18302.27,8.219e-05,2]
[355644845,1741425642435,-500.0,8.219e-05,2]
[355644846,1741425642462,-500.0,8.219e-05,2]
[355644847,1741425642492,-1928.74,8.219e-05,2]
[355644848,1741425642518,-500.0,8.219e-05,2]
[355644849,1741425642545,-861.17,8.219e-05,2]
[355644850,1741425642570,-500.0,8.219e-05,2]
[355644851,1741425642594,-500.0,8.219e-05,2]
[355644852,1741425642617,-631.2,8.219e-05,2]
[355644853,1741425642642,-2990.25,8.219e-05,2]
[355644854,1741425642666,-500.0,8.219e-05,2]
[355644855,1741425642690,-2246.19,8.219e-05,2]
[355644856,1741425642714,-500.0,8.219e-05,2]
[355644857,1741425642739,-4876.89,8.219e-05,2]
[355644858,1741425642764,-1516.05,8.219e-05,2]
[355644859,1741425642788,-567.65,8.219e-05,2]
[355644860,1741425642812,-1827.45,8.219e-05,2]
[355644861,1741425642838,-651.63,8.219e-05,2]
[355644862,1741425642861,-500.0,8.219e-05,2]
[355644863,1741425642888,-500.0,8.219e-05,2]
[355644864,1741425642916,-500.0,8.219e-05,2]
[355644865,1741425642946,-1165.8,8.219e-05,2]
[355644866,1741425642975,-885.18,8.219e-05,2]
[355644867,1741425643003,-500.0,8.219e-05,2]
[355644868,1741425643028,-2036.18,8.219e-05,2]
[355644869,1741425643056,-1645.53719929,8.219e-05,2]
[355644870,1741425649296,-12289.64280071,8.219e-05,2]
[355644871,1741425649325,-4918.69,8.219e-05,2]
[355644872,1741425649354,-500.0,8.219e-05,2]
[355644873,1741425649383,-1166.31,8.219e-05,2]
[355644874,1741425649410,-4019.85,8.219e-05,2]
[355644875,1741425649439,-3365.13,8.219e-05,2]
[355644876,1741425649470,-506.71,8.219e-05,2]
[355644877,1741425649503,-500.0,8.219e-05,2]
[355644878,1741425649530,-3933.38,8.219e-05,2]
[355644879,1741425649558,-613.89,8.219e-05,2]
[355644880,1741425649585,-3466.97,8.219e-05,2]
[355644881,1741425649612,-4452.36,8.219e-05,2]
[355644882,1741425649639,-535.35,8.219e-05,2]
[355644883,1741425649666,-774.1,8.219e-05,2]
[355644884,1741425649692,-3119.38,8.219e-05,2]
[355644885,1741425649719,-1955.72,8.219e-05,2]
[355644886,1741425649744,-1679.58,8.219e-05,2]
[355644887,1741425649770,-500.0,8.219e-05,2]
[355644888,1741425649797,-500.0,8.219e-05,2]
[355644889,1741425649823,-494.4369615,8.219e-05,2]
[355644890,1741425649850,-4290.59,8.219e-05,2]
[355644891,1741425649878,-543.69,8.219e-05,2]
[355644892,1741425649903,-776.58,8.219e-05,2]
[355644893,1741425649928,-16771.39,8.219e-05,2]
[355644894,1741425649954,-5635.76,8.219e-05,2]
[355644895,1741425649980,-30.49023779,8.219e-05,2]
[355644896,1741425702747,-223.0862,8.119e-05,2]
[355644897,1741425702773,-313.7,8.119e-05,2]
[355644898,1741425702801,-2927.9732,8.119e-05,2]
[355644899,1741425702829,-300.0,8.218e-05,2]
[355644900,1741425702854,-150.0,8.218e-05,2]
[355644901,1741425702881,-500.0,8.218e-05,2]
[355644902,1741425702908,-151.83719012,8.218e-05,2]
[355644903,1741425702934,-247.20578495,8.218e-05,2]
[355644904,1741425702961,-500.0,8.218e-05,2]
[355644905,1741425702988,-500.0,8.218e-05,2]
[355644906,1741425703015,-500.0,8.218e-05,2]
[355644907,1741425703043,-500.0,8.218e-05,2]
[355644908,1741425703071,-5605.26976221,8.219e-05,2]
[355644909,1741425703097,-836.65,8.219e-05,2]
[355644910,1741425703123,-5635.76,8.219e-05,2]
[355644911,1741425703151,-500.0,8.219e-05,2]
[355644912,1741425703176,-500.0,8.219e-05,2]
[355644913,1741425703203,-1131.01,8.219e-05,2]
[355644914,1741425703229,-1143.33,8.219e-05,2]
[355644915,1741425703255,-636.51,8.219e-05,2]
[355644916,1741425703281,-1038.28,8.219e-05,2]
[355644917,1741425703306,-9087.68,8.219e-05,2]
[355644918,1741425703333,-320.62613628,8.219e-05,2]
[355644919,1741425703358,-867.07,8.219e-05,2]
[355644920,1741425703383,-736.5,8.219e-05,2]
[355644921,1741425703413,-500.0,8.219e-05,2]
[355644922,1741425703438,-1492.48,8.219e-05,2]
[355644923,1741425703463,-3020.03,8.219e-05,2]
[355644924,1741425703491,-1744.05,8.219e-05,2]
[355644925,1741425703519,-717.76,8.219e-05,2]
[355644926,1741425703544,-500.0,8.219e-05,2]
[355644927,1741425703571,-500.0,8.219e-05,2]
[355644928,1741425703594,-1039.62,8.219e-05,2]
[355644929,1741425703618,-500.0,8.219e-05,2]
[355644930,1741425703643,-856.4,8.219e-05,2]
[355644931,1741425703668,-1088.58,8.219e-05,2]
[355644932,1741425703692,-530.65,8.219e-05,2]
[355644933,1741425703717,-1305.26,8.219e-05,2]
[355644934,1741425703740,-829.79,8.219e-05,2]
[355644935,1741425703764,-1485.74,8.219e-05,2]
[355644936,1741425703788,-7288.8,8.219e-05,2]
[355644937,1741425703813,-1120.39,8.219e-05,2]
[355644938,1741425703838,-500.0,8.219e-05,2]
[355644939,1741425703864,-1137.31,8.219e-05,2]
[355644940,1741425703890,-11718.48,8.219e-05,2]
[355644941,1741425703916,-500.0,8.219e-05,2]
[355644942,1741425703941,-500.0,8.219e-05,2]
[355644943,1741425703967,-585.81,8.219e-05,2]
[355644944,1741425703991,-1589.8,8.219e-05,2]
[355644945,1741425704017,-3054.08,8.219e-05,2]
[355644946,1741425704057,-500.0,8.219e-05,2]
[355644947,1741425704084,-500.0,8.219e-05,2]
[355644948,1741425704113,-1966.87,8.219e-05,2]
[355644949,1741425704142,-2270.86,8.219e-05,2]
[355644950,1741425704169,-973.03,8.219e-05,2]
[355644951,1741425704198,-2275.43,8.219e-05,2]
[355644952,1741425704224,-500.0,8.219e-05,2]
[355644953,1741425704249,-6939.27,8.219e-05,2]
[355644954,1741425704275,-3125.98,8.219e-05,2]
[355644955,1741425704301,-560.26385908,8.219e-05,2]
[355644956,1741425704327,-500.0,8.219e-05,2]
[355644957,1741425704354,-500.0,8.219e-05,2]
[355644958,1741425704381,-920.45,8.219e-05,2]
[355644959,1741425704406,-713.92,8.219e-05,2]
[355644960,1741425704433,-1964.91,8.219e-05,2]
[355644961,1741425704459,-628.63,8.219e-05,2]
[355644962,1741425704487,-500.0,8.219e-05,2]
[355644963,1741425704513,-500.0,8.219e-05,2]
[355644964,1741425704540,-1360.9,8.219e-05,2]
[355644965,1741425704566,-2195.86,8.219e-05,2]
[355644966,1741425704594,-2510.56,8.219e-05,2]
[355644967,1741425704625,-975.73,8.219e-05,2]
[355644968,1741425704653,-3097.71,8.219e-05,2]
[355644969,1741425704681,-1132.7,8.219e-05,2]
[355644970,1741425704707,-2291.61,8.219e-05,2]
[355644971,1741425704734,-500.0,8.219e-05,2]
[355644972,1741425704762,-500.0,8.219e-05,2]
[355644973,1741425704789,-4430.9,8.219e-05,2]
[355644974,1741425704814,-500.0,8.219e-05,2]
[355644975,1741425704840,-3865.26,8.219e-05,2]
[355644976,1741425704866,-500.0,8.219e-05,2]
[355644977,1741425704893,-500.0,8.219e-05,2]
[355644978,1741425704920,-500.0,8.219e-05,2]
[355644979,1741425704945,-1471.84,8.219e-05,2]
[355644980,1741425704972,-256.99930143,8.219e-05,2]
[355644981,1741425704999,-500.0,8.219e-05,2]
[355644982,1741425705025,-500.0,8.219e-05,2]
[355644983,1741425705054,-1339.67,8.219e-05,2]
[355644984,1741425705082,-27616.54,8.219e-05,2]
[355644985,1741425705109,-500.0,8.219e-05,2]
[355644986,1741425705392,-510.52730917,8.219e-05,2]
[355644987,1741425705421,-500.0,8.219e-05,2]
[355644988,1741425705449,-500.0,8.219e-05,2]
[355644989,1741425705482,-500.0,8.219e-05,2]
[355644990,1741425705511,-500.0,8.219e-05,2]
[355644991,1741425705540,-1174.41,8.219e-05,2]
[355644992,1741425705568,-1722.36,8.219e-05,2]
[355644993,1741425705596,-1298.16,8.219e-05,2]
[355644994,1741425705623,-500.0,8.219e-05,2]
[355644995,1741425705652,-2250.77,8.219e-05,2]
[355644996,1741425705678,-706.17,8.219e-05,2]
[355644997,1741425705704,-572.41,8.219e-05,2]
[355644998,1741425705731,-500.0,8.219e-05,2]
[355644999,1741425705758,-668.45,8.219e-05,2]
[355645000,1741425705785,-4088.89,8.219e-05,2]
[355645001,1741425705813,-6362.47,8.219e-05,2]
[355645002,1741425705839,-500.0,8.219e-05,2]
[355645003,1741425705867,-895.13,8.219e-05,2]
[355645004,1741425705899,-500.0,8.219e-05,2]
[355645005,1741425705925,-500.0,8.219e-05,2]
[355645006,1741425705954,-555.36,8.219e-05,2]
[355645007,1741425705980,-3155.17,8.219e-05,2]
[355645008,1741425706006,-1530.22,8.219e-05,2]
[355645009,1741425706032,-500.0,8.219e-05,2]
[355645010,1741425706060,-240.56637313,8.219e-05,2]
[355645011,1741425706085,-500.0,8.219e-05,2]
[355645012,1741425706111,-819.07,8.219e-05,2]
[355645013,1741425706138,-500.0,8.219e-05,2]
[355645014,1741425706165,-500.0,8.219e-05,2]
[355645015,1741425706193,-8080.31,8.219e-05,2]
[355645016,1741425706222,-2209.1,8.219e-05,2]
[355645017,1741425706252,-500.0,8.219e-05,2]
[355645018,1741425706284,-500.0,8.219e-05,2]
[355645019,1741425706311,-2031.89,8.219e-05,2]
[355645020,1741425706338,-2180.36,8.219e-05,2]
[355645021,1741425706364,-848.13,8.219e-05,2]
[355645022,1741425706392,-500.0,8.219e-05,2]
[355645023,1741425706422,-951.01,8.219e-05,2]
[355645024,1741425706448,-1131.95,8.219e-05,2]
[355645025,1741425706476,-3692.71,8.219e-05,2]
[355645026,1741425706508,-500.0,8.219e-05,2]
[355645027,1741425706535,-685.41,8.219e-05,2]
[355645028,1741425706562,-503.72923046,8.219e-05,2]
[355645029,1741425706588,-504.48147771,8.219e-05,2]
[355645030,1741425706616,-632.52,8.219e-05,2]
[355645031,1741425706644,-1328.16,8.219e-05,2]
[355645032,1741425706670,-500.0,8.219e-05,2]
[355645033,1741425706695,-1910.52,8.219e-05,2]
[355645034,1741425706720,-502.34340688,8.219e-05,2]
[355645035,1741425706745,-778.36,8.219e-05,2]
[355645036,1741425706770,-495.0,8.219e-05,2]
[355645037,1741425706795,-500.0,8.219e-05,2]
[355645038,1741425706820,-1289.2,8.219e-05,2]
[355645039,1741425706845,-1079.51,8.219e-05,2]
[355645040,1741425706870,-6923.57,8.219e-05,2]
[355645041,1741425706895,-975.47,8.219e-05,2]
[355645042,1741425706921,-500.0,8.219e-05,2]
[355645043,1741425706945,-500.0,8.219e-05,2]
[355645044,1741425706970,-500.0,8.219e-05,2]
[355645045,1741425706995,-1636.14,8.219e-05,2]
[355645046,1741425707021,-3947.46,8.219e-05,2]
[355645047,1741425707046,-160.0,8.219e-05,3]
[355645048,1741425707071,-521.06580045,8.219e-05,2]
[355645049,1741425707096,-502.90368106,8.219e-05,2]
[355645050,1741425707122,-723.11,8.219e-05,2]
[355645051,1741425707148,-158.0,8.219e-05,3]
[355645052,1741425707173,-3099.61,8.219e-05,2]
[355645053,1741425707199,-636.44,8.219e-05,2]
[355645054,1741425707224,-1721.97,8.219e-05,2]
[355645055,1741425707249,-500.0,8.219e-05,2]
[355645056,1741425707275,-3748.15,8.219e-05,2]
[355645057,1741425707301,-582.31,8.219e-05,2]
[355645058,1741425707327,-3206.7,8.219e-05,2]
[355645059,1741425707353,-834.3,8.219e-05,2]
[355645060,1741425707378,-1417.52,8.219e-05,2]
[355645061,1741425707404,-242.06873982,8.219e-05,2]
[355645062,1741425707429,-1776.44,8.219e-05,2]
[355645063,1741425707454,-500.0,8.219e-05,2]
[355645064,1741425707483,-221.93155173,8.219e-05,2]
[355645065,1741425707515,-649.30542841,8.219e-05,2]
[355645066,1741425707541,-991.09,8.219e-05,2]
[355645067,1741425707567,-766.07,8.219e-05,2]
[355645068,1741425707592,-1291.94,8.219e-05,2]
[355645069,1741425707618,-6165.1,8.219e-05,2]
[355645070,1741425707644,-630.48,8.219e-05,2]
[355645071,1741425707670,-500.0,8.219e-05,2]
[355645072,1741425707694,-785.37,8.219e-05,2]
[355645073,1741425707719,-2111.29,8.219e-05,2]
[355645074,1741425707744,-3511.62,8.219e-05,2]
[355645075,1741425707770,-2857.56,8.219e-05,2]
[355645076,1741425707796,-9531.88,8.219e-05,2]
[355645077,1741425707821,-500.0,8.219e-05,2]
[355645078,1741425707846,-500.0,8.219e-05,2]
[355645079,1741425707870,-500.0,8.219e-05,2]
[355645080,1741425707896,-1151.32,8.219e-05,2]
[355645081,1741425707922,-500.0,8.219e-05,2]
[355645082,1741425707946,-500.0,8.219e-05,2]
[355645083,1741425707972,-500.0,8.219e-05,2]
[355645084,1741425707999,-500.0,8.219e-05,2]
[355645085,1741425708026,-3626.87,8.219e-05,2]
[355645086,1741425708052,-500.0,8.219e-05,2]
[355645087,1741425708078,-504.60562903,8.219e-05,2]
[355645088,1741425708105,-500.0,8.219e-05,2]
[355645089,1741425708133,-684.14,8.219e-05,2]
[355645090,1741425708161,-2359.52,8.219e-05,2]
[355645091,1741425708188,-902.71,8.219e-05,2]
[355645092,1741425708212,-500.0,8.219e-05,2]
[355645093,1741425708237,-500.0,8.219e-05,2]
[355645094,1741425708262,-168.48674031,8.219e-05,2]
[355645095,1741425708288,-503.27147099,8.219e-05,2]
[355645096,1741425708315,-17539.68,8.219e-05,2]
[355645097,1741425708342,-1150.24,8.219e-05,2]
[355645098,1741425708369,-2104.9,8.219e-05,2]
[355645099,1741425708395,-585.53,8.219e-05,2]
[355645100,1741425708422,-2390.97,8.219e-05,2]
[355645101,1741425708449,-1850.83,8.219e-05,2]
[355645102,1741425708475,-754.27,8.219e-05,2]
[355645103,1741425708506,-500.49135431,8.219e-05,2]
[355645104,1741425708729,-500.0,8.219e-05,2]
[355645105,1741425708757,-1138.89,8.219e-05,2]
[355645106,1741425708783,-662.24,8.219e-05,2]
[355645107,1741425708809,-500.0,8.219e-05,2]
[355645108,1741425708834,-500.0,8.219e-05,2]
[355645109,1741425708860,-2529.93,8.219e-05,2]
[355645110,1741425708886,-4713.75,8.219e-05,2]
[355645111,1741425708912,-500.0,8.219e-05,2]
[355645112,1741425708938,-500.0,8.219e-05,2]
[355645113,1741425708964,-500.0,8.219e-05,2]
[355645114,1741425708991,-502.10099959,8.219e-05,2]
[355645115,1741425709017,-2152.6,8.219e-05,2]
[355645116,1741425709045,-500.0,8.219e-05,2]
[355645117,1741425709074,-4673.69,8.219e-05,2]
[355645118,1741425709101,-500.0,8.219e-05,2]
[355645119,1741425709127,-631.11,8.219e-05,2]
[355645120,1741425709154,-715.45,8.219e-05,2]
[355645121,1741425709180,-500.0,8.219e-05,2]
[355645122,1741425709206,-3905.33,8.219e-05,2]
[355645123,1741425709232,-3322.52,8.219e-05,2]
[355645124,1741425709261,-1193.39,8.219e-05,2]
[355645125,1741425709287,-876.27,8.219e-05,2]
[355645126,1741425709313,-500.0,8.219e-05,2]
[355645127,1741425709338,-500.0,8.219e-05,2]
[355645128,1741425709363,-771.61,8.219e-05,2]
[355645129,1741425709390,-848.29,8.219e-05,2]
[355645130,1741425709416,-1045.36,8.219e-05,2]
[355645131,1741425709442,-1874.23,8.219e-05,2]
[355645132,1741425709466,-9253.59,8.219e-05,2]
[355645133,1741425709493,-500.0,8.219e-05,2]
[355645134,1741425709517,-644.08244772,8.219e-05,2]
[355645135,1741425709542,-13354.55,8.219e-05,2]
[355645136,1741425709567,-3769.49,8.219e-05,2]
[355645137,1741425709593,-728.63,8.219e-05,2]
[355645138,1741425709618,-500.0,8.219e-05,2]
[355645139,1741425709644,-500.0,8.219e-05,2]
[355645140,1741425709671,-3224.91,8.219e-05,2]
[355645141,1741425709696,-584.11,8.219e-05,2]
[355645142,1741425709720,-772.69,8.219e-05,2]
[355645143,1741425709746,-3852.35,8.219e-05,2]
[355645144,1741425709773,-5443.76,8.219e-05,2]
[355645145,1741425709797,-500.0,8.219e-05,2]
[355645146,1741425709823,-11890.13692516,8.219e-05,2]
[355645147,1741425737969,-9045.9592,8.119e-05,2]
[355645148,1741425737994,-3171.89979325,8.14e-05,2]
[355645149,1741425738020,-1470.14100675,8.161e-05,2]
[355645150,1741425758576,1035.4,7.797e-05,2]
[355645151,1741425785459,160.0,7.797e-05,3]
[355645152,1741425906312,159.0,7.797e-05,3]
[355645153,1741425944416,404.67,7.63e-05,2]
[355645156,1741426002484,176.23,7.61e-05,2]
[355645166,1741426035120,769.29,7.61e-05,2]
[355645167,1741426035541,769.29,7.634e-05,2]
[355645168,1741426035785,769.29,7.658e-05,2]
[355645169,1741426035978,769.29,7.682e-05,2]
[355645170,1741426036209,769.29,7.706e-05,2]
[355645171,1741426036419,769.29,7.73e-05,2]
[355645172,1741426036621,769.29,7.754e-05,2]
[355645173,1741426036835,769.29,7.778e-05,2]
[355645174,1741426037034,769.29,7.802e-05,2]
[355645175,1741426037632,769.29,7.827e-05,2]
[355645176,1741426037774,769.29,7.851e-05,2]
[355645177,1741426037825,769.29,7.875e-05,2]
[355645178,1741426037889,769.29,7.899e-05,2]
[355645179,1741426038028,769.29,7.923e-05,2]
[355645180,1741426038446,769.29,7.947e-05,2]
[355645181,1741426038655,769.29,7.971e-05,2]
[355645182,1741426038866,769.29,7.995e-05,2]
[355645183,1741426039135,769.29,8.019e-05,2]
[355645184,1741426039541,769.29,8.043e-05,2]
[355645185,1741426039615,769.29,8.067e-05,2]
[355645186,1741426048553,3400.0,8e-05,2]
[355645188,1741426059235,1061.07,7.582e-05,2]
[355645217,1741426160580,12702.85,7.575e-05,2]
[355645254,1741426232493,-150.0,8.118e-05,2]
[355645255,1741426232503,-150.0,8.118e-05,2]
[355645256,1741426232512,-550.0,8.118e-05,2]
[355645257,1741426232522,-2221.0992,8.119e-05,2]
[355645258,1741426232531,-1572.127,8.119e-05,2]
[355645259,1741426232541,-6812.81651057,8.119e-05,2]
[355645260,1741426232608,-3750.22640914,8.119e-05,2]
[355645261,1741426232619,-430.37389866,8.119e-05,2]
[355645262,1741426232631,-7414.43018163,8.119e-05,2]
[355645264,1741426232641,-1768.2614,8.119e-05,2]
[355645266,1741426232654,-150.0,8.141e-05,2]
[355645267,1741426232663,-890.81297482,8.161e-05,2]
[355645295,1741426238395,-643.52978808,8.161e-05,2]
[355645296,1741426238405,-367.56928676,8.209e-05,2]
[355645302,1741426240352,-600.10565455,8.209e-05,2]
[355645303,1741426240363,-5200.91198028,8.213e-05,2]
[355645304,1741426240409,-2013.27082666,8.213e-05,2]
[355645305,1741426240575,-1301.20467286,8.213e-05,2]
[355645306,1741426240585,-2590.25957397,8.213e-05,2]
[355645307,1741426240596,-411.31082313,8.213e-05,2]
[355645472,1741426246031,-421.7571477,8.213e-05,2]
[355645473,1741426246041,-500.0,8.218e-05,2]
[355645474,1741426246050,-177.69451588,8.218e-05,2]
[355645475,1741426246062,-22.99559188,8.218e-05,2]
[355645476,1741426246071,-500.0,8.218e-05,2]
[355645477,1741426246080,-390.44440812,8.218e-05,2]
[355645478,1741426246123,-109.55559188,8.218e-05,2]
[355645479,1741426246133,-500.0,8.218e-05,2]
[355645481,1741426246142,-500.0,8.218e-05,2]
[355645482,1741426246152,-584.75654314,8.218e-05,2]
[355645483,1741426246161,-500.0,8.218e-05,2]
[355645484,1741426246171,-829.15,8.218e-05,2]
[355645485,1741426246180,-503.27240411,8.219e-05,2]
[355645486,1741426246190,-718.68,8.219e-05,2]
[355645487,1741426246200,-772.57,8.219e-05,2]
[355645488,1741426246209,-1137.06,8.219e-05,2]
[355645489,1741426246219,-160.25546087,8.219e-05,2]
[355645491,1741426248323,-1155.75453913,8.219e-05,2]
[355645492,1741426248333,-1144.73,8.219e-05,2]
[355645493,1741426248342,-598.98,8.219e-05,2]
[355645494,1741426248351,-500.0,8.219e-05,2]
[355645495,1741426248361,-500.0,8.219e-05,2]
[355645496,1741426248371,-500.0,8.219e-05,2]
[355645497,1741426248380,-500.0,8.219e-05,2]
[355645498,1741426248389,-500.0,8.219e-05,2]
[355645499,1741426248399,-917.26,8.219e-05,2]
[355645500,1741426248408,-519.61244965,8.219e-05,2]
[355645501,1741426248418,-500.0,8.219e-05,2]
[355645502,1741426248427,-500.0,8.219e-05,2]
[355645503,1741426248436,-198.06099012,8.219e-05,2]
[355645504,1741426248445,-644.9,8.219e-05,2]
[355645505,1741426248454,-850.77,8.219e-05,2]
[355645506,1741426248463,-500.0,8.219e-05,2]
[355645507,1741426248473,-718.38,8.219e-05,2]
[355645508,1741426248482,-162.17359788,8.219e-05,2]
[355645509,1741426248491,-500.0,8.219e-05,2]
[355645510,1741426248500,-966.81,8.219e-05,2]
[355645511,1741426248509,-650.22,8.219e-05,2]
[355645512,1741426248518,-13.13943395,8.219e-05,2]
[355645513,1741426248529,-486.86056605,8.219e-05,2]
[355645514,1741426248538,-625.05,8.219e-05,2]
[355645515,1741426248547,-733.95,8.219e-05,2]
[355645516,1741426248556,-500.0,8.219e-05,2]
[355645517,1741426248565,-508.3466218,8.219e-05,2]
[355645518,1741426248574,-765.45,8.219e-05,2]
[355645519,1741426248583,-493.91624991,8.219e-05,2]
[355645520,1741426248592,-1498.4,8.219e-05,2]
[355645521,1741426248601,-500.0,8.219e-05,2]
[355645522,1741426248610,-500.0,8.219e-05,2]
[355645523,1741426248620,-581.59,8.219e-05,2]
[355645524,1741426248629,-778.73,8.219e-05,2]
[355645525,1741426248639,-500.0,8.219e-05,2]
[355645526,1741426248650,-866.47,8.219e-05,2]
[355645527,1741426248666,-884.95692505,8.219e-05,2]
[355645528,1741426248697,-130.66307495,8.219e-05,2]
[355645529,1741426248706,-500.0,8.219e-05,2]
[355645530,1741426248716,-668.0961301,8.219e-05,2]
[355645531,1741426248727,-13.0838699,8.219e-05,2]
[355645532,1741426248739,-500.0,8.219e-05,2]
[355645533,1741426248749,-51.79841293,8.219e-05,2]
[355645534,1741426248760,-909.19158707,8.219e-05,2]
[355645535,1741426248770,-500.0,8.219e-05,2]
[355645536,1741426248779,-500.0,8.219e-05,2]
[355645537,1741426248789,-506.02,8.219e-05,2]
[355645538,1741426248799,-1027.13,8.219e-05,2]
[355645539,1741426248808,-364.72473292,8.219e-05,2]
[355645540,1741426248820,-135.27526708,8.219e-05,2]
[355645541,1741426248829,-500.0,8.219e-05,2]
[355645542,1741426248838,-717.07,8.219e-05,2]
[355645543,1741426248848,-2215.94,8.219e-05,2]
[355645544,1741426248857,-500.0,8.219e-05,2]
[355645545,1741426248866,-500.0,8.219e-05,2]
[355645546,1741426248875,-817.38,8.219e-05,2]
[355645547,1741426248884,-500.0,8.219e-05,2]
[355645548,1741426248893,-500.0,8.219e-05,2]
[355645549,1741426248902,-966.8,8.219e-05,2]
[355645550,1741426248911,-832.76,8.219e-05,2]
[355645551,1741426248920,-1397.87,8.219e-05,2]
[355645552,1741426248929,-800.43,8.219e-05,2]
[355645553,1741426248938,-500.0,8.219e-05,2]
[355645554,1741426248947,-940.33,8.219e-05,2]
[355645555,1741426248956,-774.64,8.219e-05,2]
[355645556,1741426248965,-1242.58,8.219e-05,2]
[355645557,1741426248974,-500.0,8.219e-05,2]
[355645558,1741426248983,-790.06,8.219e-05,2]
[355645559,1741426248992,-599.93,8.219e-05,2]
[355645560,1741426249000,-609.53,8.219e-05,2]
[355645561,1741426249009,-500.0,8.219e-05,2]
[355645562,1741426249018,-1060.9,8.219e-05,2]
[355645563,1741426249027,-500.0,8.219e-05,2]
[355645564,1741426249036,-557.11,8.219e-05,2]
[355645565,1741426249045,-1234.99,8.219e-05,2]
[355645566,1741426249054,-737.15,8.219e-05,2]
[355645567,1741426249063,-1413.02,8.219e-05,2]
[355645568,1741426249072,-500.0,8.219e-05,2]
[355645569,1741426249081,-500.0,8.219e-05,2]
[355645570,1741426249090,-500.0,8.219e-05,2]
[355645571,1741426249099,-572.17,8.219e-05,2]
[355645572,1741426249109,-500.0,8.219e-05,2]
[355645573,1741426249120,-734.32,8.219e-05,2]
[355645574,1741426249129,-502.69,8.219e-05,2]
[355645575,1741426249139,-500.0,8.219e-05,2]
[355645576,1741426249148,-676.6,8.219e-05,2]
[355645577,1741426249157,-500.0,8.219e-05,2]
[355645578,1741426249167,-1131.41,8.219e-05,2]
[355645579,1741426249176,-1092.82,8.219e-05,2]
[355645580,1741426249185,-1377.81,8.219e-05,2]
[355645581,1741426249195,-912.11,8.219e-05,2]
[355645582,1741426249204,-506.07,8.219e-05,2]